fUST/lending_fUST_20240628
["ID","MTS","AMOUNT","RATE_DAILY","PERIOD"]
[330516044,1719550045130,-468.20727708,0.0002554,2]
[330516045,1719550048117,-503.28683515,0.0002554,2]
[330516046,1719550048140,-222.25585087,0.0002582,2]
[330516047,1719550048244,-459.72851932,0.0002582,2]
[330516048,1719550051095,-116.39087544,0.0002582,2]
[330516049,1719550051115,-95.57538353,0.000259,2]
[330516052,1719550148196,-150.0,0.0002344,2]
[330516053,1719550148217,-653.4940436,0.000259,2]
[330516054,1719550148237,-480.34698083,0.00026,4]
[330516055,1719550149164,-25.09381864,0.00026,4]
[330516056,1719550157108,-4176.59922576,0.00027184,2]
[330516071,1719550231992,-509.4195887,0.00027168,2]
[330516072,1719550232001,-2000.86745152,0.00027286,2]
[330516109,1719550238151,-21433.37098646,0.00027286,2]
[330516116,1719550240011,-1465.76156202,0.00027286,2]
[330516117,1719550240021,-290.781891,0.00027347,2]
[330516118,1719550240031,-1596.54871261,0.0002799,2]
[330516119,1719550240042,-295.5009455,0.00028,2]
[330516120,1719550240052,-156.92274176,0.00028106,2]
[330516121,1719550240061,-156.92274176,0.00028174,2]
[330516122,1719550240071,-154.78960783,0.00028279,2]
[330516123,1719550240080,-250.0,0.00028462,2]
[330516124,1719550240090,-156.92274176,0.00028599,2]
[330516125,1719550240099,-190.71173259,0.00028949,2]
[330516126,1719550240109,-160.3685357,0.00028985,2]
[330516127,1719550240118,-203.013,0.00029154,30]
[330516128,1719550240128,-160.3685357,0.00029784,2]
[330516129,1719550240138,-373.7136577,0.00029904,30]
[330516130,1719550240147,-160.3685357,0.00030274,7]
[330516131,1719550240156,-6383.09322801,0.00030794,7]
[330516150,1719550243123,-1765.29687565,0.00030794,7]
[330516151,1719550243134,-639.88484048,0.00030794,7]
[330516152,1719550243196,-257.24969185,0.00030794,7]
[330516178,1719550246264,-5284.00582292,0.00030794,7]
[330516179,1719550246275,-3299.0401227,0.00030794,7]
[330516180,1719550278891,166.368871,0.00021096,2]
[330516193,1719551225150,-155.30237999,0.00016255,2]
[330516194,1719551225171,-945.75344621,0.00016255,2]
[330516195,1719551233104,-1456.67650306,0.00016255,2]
[330516196,1719551234123,-717.68822879,0.00016255,2]
[330516197,1719551243097,-1143.98164973,0.00016255,2]
[330516198,1719551249095,-1242.67146241,0.00016255,2]
[330516199,1719551249122,-21.46005916,0.00016255,2]
[330516200,1719551249146,-300.0,0.00018898,2]
[330516201,1719551249168,-355.46178493,0.00018899,2]
[330516202,1719551249190,-155.00138827,0.00018899,2]
[330516203,1719551249210,-154.80649189,0.00019165,2]
[330516204,1719551249233,-420.0,0.00020788,2]
[330516205,1719551249259,-165.778295,0.00021096,2]
[330516206,1719551249279,-449.47063521,0.00022389,2]
[330516207,1719551249298,-490.54850109,0.00023455,2]
[330516208,1719551249319,-241.93884254,0.00023966,2]
[330516209,1719551250592,-293.93873221,0.00016255,2]
[330516210,1719551250612,-1017.49710151,0.00023966,2]
[330516214,1719551345131,-150.0,0.00021866,2]
[330516215,1719551345152,-775.83995748,0.00023453,2]
[330516216,1719551345317,-172.3010942,0.00023968,2]
[330516217,1719551357196,-550.72085702,0.0002448,2]
[330516218,1719551357222,-417.49711854,0.0002496,2]
[330516219,1719551360576,-612.812969,0.0002496,2]
[330516220,1719551360597,-1770.0273583,0.00025615,2]
[330516221,1719551360622,-229.386147,0.00026195,2]
[330516222,1719551360644,-250.0,0.00026235,2]
[330516223,1719551360668,-1125.14098986,0.000265,2]
[330516224,1719551362469,155.03268068,0.00014999,2]
[330516225,1719551366093,-1117.74863961,0.00024481,2]
[330516226,1719551366116,-1649.69203414,0.000265,2]
[330516227,1719551366138,-300.0,0.00026573,2]
[330516228,1719551366159,-300.0,0.00026573,2]
[330516229,1719551366179,-150.0,0.00026866,2]
[330516230,1719551428920,154.9879291,0.00026848,2]
[330516231,1719551429689,1023.5159356,0.0002,2]
[330516232,1719551429709,1193.09266259,0.0002,2]
[330516233,1719551429733,2087.75154785,0.0002,2]
[330516234,1719551429756,3929.63172878,0.0002,2]
[330516235,1719551429781,813.8847894,0.0002,2]
[330516282,1719551432284,-652.08718524,0.0002724,2]
[330516284,1719551432298,-541.63420298,0.00027307,2]
[330516287,1719551432319,-59.57249292,0.00027307,2]
[330516289,1719551432334,-947.99354244,0.00027399,2]
[330516292,1719551432349,-947.99354244,0.00027399,2]
[330516294,1719551432366,-323.78291371,0.00027399,2]
[330516297,1719551432377,-869.79610735,0.00027399,2]
[330516299,1719551432388,-156.50863662,0.00028872,2]
[330516301,1719551432404,-5283.67863355,0.0002947,2]
[330516304,1719551432418,-1129.4029135,0.00029618,2]
[330516306,1719551432432,-500.0,0.00029618,2]
[330516309,1719551432444,-492.86239841,0.00029618,2]
[330516311,1719551432458,-8980.95154197,0.00029619,2]
[330516378,1719551438085,-5173.60199535,0.00029544,2]
[330516379,1719551438096,-10917.89135877,0.00029619,2]
[330516380,1719551438138,-2460.31682731,0.00029619,2]
[330516381,1719551438190,-797.17277758,0.00029619,2]
[330516419,1719551442030,-1743.66749437,0.00029619,2]
[330516420,1719551442039,-293.42324868,0.00029703,2]
[330516421,1719551442049,-155.35983768,0.00029904,2]
[330516422,1719551442060,-508.89,0.0003,10]
[330516423,1719551442070,-159.50123805,0.00030338,7]
[330516424,1719551442080,-340.4318688,0.00030797,7]
[330516425,1719551442090,-1000.0,0.00031565,2]
[330516426,1719551442099,-160.3685357,0.00031673,7]
[330516427,1719551442108,-293.42324864,0.00031841,2]
[330516428,1719551442117,-367.14723801,0.00032564,4]
[330516429,1719551442127,-367.14723801,0.00032564,4]
[330516430,1719551442137,-160.3685357,0.00033049,7]
[330516431,1719551442146,-156.50863662,0.00033067,7]
[330516432,1719551442155,-195.47966853,0.00033294,4]
[330516433,1719551442164,-269.54035661,0.00033294,4]
[330516434,1719551442173,-160.3685357,0.0003373,7]
[330516435,1719551442183,-293.42324864,0.0003398,2]
[330516436,1719551442193,-723.14150284,0.00034422,4]
[330516437,1719551442204,-208.15302607,0.0003456,4]
[330516438,1719551442214,-263.88019692,0.00034563,4]
[330516439,1719551442225,-2115.78838011,0.00034563,4]
[330516440,1719551442234,-156.50863662,0.00035084,7]
[330516441,1719551442243,-153.0,0.00035751,2]
[330516442,1719551442252,-153.0,0.00035751,2]
[330516443,1719551442262,-153.0,0.00035751,2]
[330516444,1719551442271,-153.0,0.00035751,2]
[330516445,1719551442281,-153.0,0.00035751,2]
[330516446,1719551442290,-153.0,0.00035751,2]
[330516447,1719551442300,-153.0,0.00035751,2]
[330516448,1719551442311,-153.0,0.00035751,2]
[330516449,1719551442322,-153.0,0.00035753,2]
[330516450,1719551442336,-153.0,0.00035753,2]
[330516451,1719551442346,-153.0,0.00035753,2]
[330516452,1719551442355,-153.0,0.00035753,2]
[330516453,1719551442365,-137.60442139,0.00035753,2]
[330516454,1719551442382,-15.39557861,0.00035753,2]
[330516455,1719551442394,-153.0,0.00035753,2]
[330516456,1719551442404,-153.0,0.00035753,2]
[330516457,1719551442413,-153.0,0.00035753,2]
[330516458,1719551442423,-153.0,0.00035758,2]
[330516459,1719551442432,-153.0,0.00035758,2]
[330516460,1719551442441,-153.0,0.00035758,2]
[330516461,1719551442450,-153.0,0.00035758,2]
[330516462,1719551442460,-153.0,0.00035758,2]
[330516463,1719551442469,-153.0,0.00035758,2]
[330516464,1719551442478,-153.0,0.00035758,2]
[330516465,1719551442488,-153.0,0.00035758,2]
[330516466,1719551442498,-153.0,0.00035758,2]
[330516467,1719551442507,-153.0,0.00035758,2]
[330516468,1719551442517,-153.0,0.00035758,2]
[330516469,1719551442527,-153.0,0.00035758,2]
[330516470,1719551442536,-153.0,0.00035758,2]
[330516471,1719551442546,-153.0,0.00035758,2]
[330516472,1719551442555,-153.0,0.00035768,2]
[330516473,1719551442564,-153.0,0.00035768,2]
[330516474,1719551442574,-153.0,0.00035768,2]
[330516475,1719551442583,-153.0,0.00035768,2]
[330516476,1719551442594,-153.0,0.00035768,2]
[330516477,1719551442603,-153.0,0.00035768,2]
[330516478,1719551442612,-153.0,0.00035768,2]
[330516479,1719551442621,-153.0,0.00035768,2]
[330516480,1719551442631,-153.0,0.00035768,2]
[330516481,1719551442644,-153.0,0.00035768,2]
[330516482,1719551442653,-153.0,0.00035768,2]
[330516483,1719551442662,-153.0,0.00035768,2]
[330516484,1719551442671,-153.0,0.00035768,2]
[330516485,1719551442679,-153.0,0.00035768,2]
[330516486,1719551442688,-153.0,0.00035768,2]
[330516487,1719551442698,-153.0,0.00035768,2]
[330516488,1719551442707,-153.0,0.00035768,2]
[330516489,1719551442716,-293.42324864,0.00036118,2]
[330516490,1719551442726,-156.50863662,0.00036349,7]
[330516491,1719551442735,-414.1952241,0.00036438,2]
[330516492,1719551442744,-411.790155,0.00036438,2]
[330516493,1719551442753,-410.4416042,0.00036712,2]
[330516494,1719551442762,-434.7713895,0.00036986,2]
[330516495,1719551442771,-308.3064217,0.00037041,2]
[330516496,1719551442780,-772.0,0.00037139,2]
[330516497,1719551442790,-165.778295,0.00037652,2]
[330516498,1719551442799,-338.465224,0.00037808,2]
[330516499,1719551442809,-212.847,0.00037898,2]
[330516500,1719551442818,-150.0,0.00037898,2]
[330516501,1719551442828,-151.627,0.00037898,2]
[330516502,1719551442837,-367.14049998,0.00037999,15]
[330516503,1719551442847,-5000.0,0.00038,120]
[330516504,1719551442857,-3638.34758135,0.00038,120]
[330516506,1719551442869,-1361.65241865,0.00038,120]
[330516508,1719551442878,-868.65895514,0.00038,120]
[330516510,1719551442890,-4131.34104486,0.00038,120]
[330516512,1719551442900,-1668.34368199,0.00038,120]
[330516523,1719551446381,-3331.65631801,0.00038,120]
[330516524,1719551446391,-500.0,0.00038,120]
[330516525,1719551446402,-4482.62052316,0.00038256,2]
[330516526,1719551446415,-293.42324864,0.00038256,2]
[330516527,1719551446425,-755.69724953,0.00038295,4]
[330516528,1719551446435,-736.45850885,0.00038336,3]
[330516545,1719552348348,-231.73187799,0.000265,2]
[330516547,1719552427099,-827.93034571,0.00020996,2]
[330516548,1719552427120,-165.778295,0.00021096,2]
[330516549,1719552427143,-138.95541101,0.000265,2]
[330516550,1719552427163,-154.97352877,0.000265,2]
[330516551,1719552427185,-166.666666,0.00026584,2]
[330516552,1719552427367,-1165.70456913,0.00026848,2]
[330516553,1719552430261,-295.50094549,0.00027008,2]
[330516554,1719552430284,-230.919776,0.000271,2]
[330516555,1719552430304,-300.0,0.00027108,2]
[330516556,1719552430324,-300.0,0.00027108,2]
[330516557,1719552430344,-1711.04070747,0.00027109,2]
[330516558,1719552432872,-154.97352877,0.00026853,2]
[330516559,1719552435141,-82.82263373,0.00026853,2]
[330516560,1719552435162,-1100.03094596,0.00027109,2]
[330516561,1719552440175,-1492.25364917,0.000265,2]
[330516562,1719552440196,-188.92834657,0.00027109,2]
[330516563,1719552440215,-190.5232,0.00027159,30]
[330516564,1719552440235,-951.40503099,0.00027399,2]
[330516565,1719552440255,-250.0,0.00027548,2]
[330516566,1719552440276,-164.9870439,0.00028882,2]
[330516567,1719552440296,-420.0,0.00029303,2]
[330516568,1719552440316,-6183.74685333,0.00029615,2]
[330516569,1719552454157,-161.63751971,0.00028597,2]
[330516570,1719552454178,-784.70070704,0.00029615,2]
[330516573,1719552547092,-300.0,0.00029614,2]
[330516574,1719552547113,-3621.07825914,0.00029615,2]
[330516630,1719552632712,-200.61503685,0.00027999,2]
[330516632,1719552632722,-178.51056605,0.00029527,5]
[330516679,1719552640755,-62.89602431,0.00029527,5]
[330516680,1719552640765,-300.0,0.00029614,2]
[330516681,1719552640775,-991.65464733,0.00029615,2]
[330516726,1719552643631,-2777.53363218,0.00029615,2]
[330516727,1719552643641,-12985.81951086,0.00029615,2]
[330516728,1719552643869,-660.44463536,0.00029615,2]
[330516729,1719552643955,-25.74798644,0.00029615,2]
[330516730,1719552643968,-638.46204783,0.00029615,2]
[330516731,1719552643978,-161.63751971,0.00029627,2]
[330516732,1719552643991,-218.14144327,0.00029896,2]
[330516733,1719552644001,-158.96699674,0.00032541,7]
[330516734,1719552644010,-420.0,0.00032576,2]
[330516735,1719552644022,-158.96699674,0.00033746,7]
[330516736,1719552644032,-2135.09451617,0.00035292,4]
[330516737,1719552644043,-164.83499585,0.00035581,4]
[330516738,1719552644052,-153.0,0.00035654,2]
[330516739,1719552644062,-153.0,0.00035654,2]
[330516740,1719552644072,-153.0,0.00035654,2]
[330516741,1719552644083,-153.0,0.00035768,2]
[330516742,1719552644093,-153.0,0.00035768,2]
[330516743,1719552644103,-153.0,0.00035768,2]
[330516744,1719552644112,-161.63751971,0.00035867,7]
[330516745,1719552644122,-155.01749415,0.00035896,4]
[330516746,1719552644132,-214.16922217,0.00036239,4]
[330516747,1719552644142,-1000.0,0.00037,37]
[330516748,1719552644153,-158.96699674,0.00037316,7]
[330516749,1719552644163,-158.96699674,0.00037422,7]
[330516750,1719552644174,-2560.7021776,0.0003783,2]
[330516751,1719552644184,-793.6986404,0.00037899,4]
[330516752,1719552644194,-309.79350356,0.00037999,4]
[330516753,1719552644204,-498.40134809,0.00037999,4]
[330516754,1719552644214,-1000.0,0.00038,38]
[330516755,1719552644223,-154.78960783,0.00038224,7]
[330516756,1719552644233,-2000.0,0.00038256,2]
[330516757,1719552644242,-277.38963412,0.00038256,5]
[330516758,1719552644252,-150.0,0.00038278,2]
[330516759,1719552644261,-772.0,0.00038278,2]
[330516760,1719552644271,-3379.09652561,0.000383,2]
[330516761,1719552644280,-1000.0,0.00038345,2]
[330516762,1719552644290,-281.26581697,0.00038346,3]
[330516769,1719552646758,-961.81211323,0.00038346,3]
[330516770,1719552646771,-498.1820698,0.00038346,3]
[330516771,1719552646780,-380.74468276,0.00038346,3]
[330516773,1719552646854,-1070.30531724,0.00038346,3]
[330516774,1719552646864,-1082.62480384,0.00038346,3]
[330516811,1719553634162,-167.8610576,0.00021096,2]
[330516812,1719553634182,-165.778295,0.00021096,2]
[330516813,1719553634203,-200.61503685,0.0002243,2]
[330516814,1719553634222,-170.483113,0.000262,2]
[330516815,1719553634241,-150.0,0.000265,2]
[330516816,1719553634262,-446.6391288,0.00026565,2]
[330516817,1719553636147,-1646.57684401,0.00026565,2]
[330516818,1719553642109,-906.78402719,0.00026565,2]
[330516819,1719553642130,-620.00033255,0.00028382,2]
[330516820,1719553642150,-435.63736571,0.0002864,2]
[330516821,1719553642171,-251.129419,0.00028678,2]
[330516822,1719553642196,-300.0,0.00028695,2]
[330516823,1719553642217,-300.0,0.00028696,2]
[330516824,1719553642238,-321.60657346,0.00028696,2]
[330516825,1719553642259,-4095.91717458,0.00028697,2]
[330516826,1719553653144,-154.79204825,0.00028204,2]
[330516827,1719553653164,-1387.0331556,0.00028697,2]
[330516832,1719553746106,-749.06942713,0.00026465,2]
[330516833,1719553746127,-150.0,0.00026597,2]
[330516834,1719553746148,-2523.62768311,0.00028697,2]
[330516835,1719553754582,-513.66076365,0.00028697,2]
[330516838,1719553807370,789.45649997,0.0002771,2]
[330516876,1719553832897,-250.0,0.00027985,2]
[330516880,1719553832906,-2108.04930814,0.00028697,2]
[330516882,1719553832916,-760.0856498,0.00028697,2]
[330516884,1719553832928,-314.50156273,0.00028697,2]
[330516886,1719553832939,-2694.60106698,0.00028697,2]
[330516888,1719553832949,-4232.22295693,0.00028697,2]
[330516890,1719553832960,-1850.49,0.00028697,2]
[330516893,1719553832971,-1543.14565618,0.00028697,2]
[330516935,1719553841098,-493.144,0.00028697,2]
[330516936,1719553841110,-808.88059479,0.00028697,2]
[330516937,1719553841201,-7451.87801516,0.00028697,2]
[330516938,1719553841210,-154.79204825,0.00028979,2]
[330516939,1719553841220,-154.79204825,0.0003013,7]
[330516940,1719553841229,-2186.53664482,0.00030801,7]
[330516941,1719553841241,-15924.23432491,0.00030801,7]
[330516942,1719553841251,-1000.0,0.00030802,2]
[330516943,1719553841261,-157.73102155,0.00030996,7]
[330516945,1719553841270,-161.42659871,0.00032182,7]
[330516947,1719553841281,-154.79204825,0.0003272,7]
[330516949,1719553841290,-2129.2320514,0.00034562,4]
[330516951,1719553841301,-8097.6774849,0.00034634,4]
[330516953,1719553841310,-586.60022299,0.00034762,4]
[330516955,1719553841320,-269.54035661,0.00034762,4]
[330516957,1719553841329,-842.64804764,0.00034762,4]
[330516958,1719553841339,-1204.3162592,0.00034771,2]
[330516959,1719553841348,-154.98509739,0.00034771,4]
[330516960,1719553841357,-154.80649189,0.00034784,4]
[330516961,1719553841367,-313.85659461,0.00035259,4]
[330516962,1719553841376,-236.6113708,0.00035292,4]
[330516963,1719553841386,-153.0,0.00035502,2]
[330516964,1719553841399,-189.13765566,0.00035581,4]
[330516965,1719553841408,-154.79204825,0.00035946,7]
[330516966,1719553841417,-154.79204825,0.0003615,7]
[330516967,1719553841426,-157.73102157,0.00037688,7]
[330516968,1719553841436,-529.89,0.0003799,3]
[330516969,1719553841446,-595.35,0.0003799,3]
[330516970,1719553841455,-929.55,0.0003799,3]
[330516971,1719553841464,-157.34592856,0.00037999,15]
[330516972,1719553841476,-4756.53377491,0.00038,7]
[330516973,1719553841486,-9379.35440849,0.00038,7]
[330517021,1719554757105,-166.982822,0.00021096,2]
[330517022,1719554757125,-1369.53292502,0.0002593,2]
[330517023,1719554825107,-165.979049,0.00021096,2]
[330517024,1719554825128,-1352.46707498,0.0002593,2]
[330517025,1719554825268,-251.1294193,0.00028741,2]
[330517026,1719554825294,-300.0,0.00028815,2]
[330517027,1719554825315,-4861.48968057,0.00028816,2]
[330517028,1719554826308,-3713.70929888,0.00028816,2]
[330517029,1719554840155,-1932.44040533,0.00028816,2]
[330517030,1719554848108,-505.29653704,0.0002593,2]
[330517031,1719554848130,-460.87760078,0.00028816,2]
[330517033,1719554947094,-150.0,0.00026716,2]
[330517034,1719554947115,-300.0,0.00028815,2]
[330517035,1719554947138,-2586.90422364,0.00028816,2]
[330517038,1719555007126,957.48527665,0.00027073,2]
[330517074,1719555032441,-2021.71914462,0.00028816,2]
[330517078,1719555032508,-1193.09266259,0.00028816,2]
[330517115,1719555038072,-8129.76698359,0.00028816,2]
[330517116,1719555038082,-152.34601979,0.00031205,7]
[330517117,1719555038092,-210.8958582,0.00033445,2]
[330517118,1719555038102,-252.9929245,0.00034217,2]
[330517119,1719555038111,-250.0,0.00034436,2]
[330517121,1719555038120,-154.90515503,0.00034762,4]
[330517123,1719555038130,-216.88239442,0.00034989,4]
[330517125,1719555038140,-209.92168825,0.00035259,4]
[330517126,1719555038149,-2496.69621888,0.00035259,2]
[330517127,1719555038158,-154.8223386,0.00035292,4]
[330517128,1719555038167,-153.0,0.00035456,2]
[330517129,1719555038177,-1487.2316115,0.00037259,4]
[330517130,1719555038186,-309.0228219,0.0003726,2]
[330517131,1719555038195,-413.3437853,0.0003726,2]
[330517132,1719555038205,-214.16922217,0.00037523,4]
[330517133,1719555038215,-1058.87397207,0.00037523,2]
[330517134,1719555038224,-831.38457913,0.00037587,4]
[330517135,1719555038234,-772.0,0.00037871,2]
[330517136,1719555038243,-670.94576027,0.00037899,30]
[330517137,1719555038253,-1262.0663077,0.00037988,2]
[330517138,1719555038262,-1000.0,0.00037999,2]
[330517139,1719555038272,-598.16058774,0.00037999,4]
[330517140,1719555038281,-35890.58843454,0.00038,7]
[330517141,1719555038291,-150.0,0.00038003,2]
[330517142,1719555038300,-150.0,0.00038003,2]
[330517143,1719555038309,-150.0,0.00038003,2]
[330517144,1719555038319,-2000.0,0.00038256,2]
[330517145,1719555038329,-774.62,0.00038346,3]
[330517146,1719555038338,-645.52,0.00038346,3]
[330517147,1719555038348,-537.93,0.00038346,3]
[330517148,1719555038357,-978.04,0.00038355,10]
[330517149,1719555038367,-25904.82551474,0.00038356,7]
[330517150,1719555038376,-2378.26688746,0.00038356,7]
[330517151,1719555038385,-500.0,0.00038356,30]
[330517152,1719555038395,-500.7499991,0.00038356,30]
[330517153,1719555038404,-500.0,0.00038356,30]
[330517154,1719555038414,-500.0,0.00038356,30]
[330517155,1719555038423,-500.0,0.00038356,30]
[330517156,1719555038433,-500.0,0.00038356,30]
[330517157,1719555038442,-557.59556548,0.00038356,30]
[330517158,1719555038452,-500.0,0.00038356,30]
[330517159,1719555038461,-500.0,0.00038356,30]
[330517160,1719555038471,-500.0,0.00038356,30]
[330517161,1719555038480,-500.0,0.00038356,30]
[330517162,1719555038490,-522.67185064,0.00038356,30]
[330517163,1719555038500,-500.0,0.00038356,30]
[330517164,1719555038509,-500.0,0.00038356,30]
[330517165,1719555038519,-272.08738537,0.00038356,30]
[330517166,1719555038528,-500.0,0.00038356,30]
[330517167,1719555038538,-500.0,0.00038356,30]
[330517168,1719555038547,-500.0,0.00038356,30]
[330517169,1719555038557,-500.0,0.00038356,30]
[330517170,1719555038566,-500.0,0.00038356,30]
[330517171,1719555038576,-674.72,0.00038356,30]
[330517172,1719555038585,-500.56647572,0.00038356,30]
[330517173,1719555038595,-500.0,0.00038356,30]
[330517174,1719555038605,-500.0,0.00038356,30]
[330517175,1719555038614,-500.0,0.00038356,30]
[330517176,1719555038624,-1458.91,0.00038356,30]
[330517177,1719555038634,-611.99,0.00038356,30]
[330517178,1719555038644,-200.0,0.00038356,7]
[330517179,1719555038655,-466.02071786,0.00038356,30]
[330517180,1719555038664,-500.0,0.00038356,2]
[330517181,1719555038674,-633.46,0.00038356,30]
[330517182,1719555038683,-500.0,0.00038356,30]
[330517183,1719555038693,-915.98,0.00038356,30]
[330517184,1719555038704,-521.20022237,0.00038356,2]
[330517185,1719555038713,-803.3,0.00038356,30]
[330517186,1719555038726,-500.0,0.00038356,30]
[330517187,1719555038735,-215.946329,0.00038356,7]
[330517188,1719555038745,-503.94279675,0.00038356,30]
[330517189,1719555038755,-500.0,0.00038356,30]
[330517190,1719555038764,-504.3126337,0.00038356,30]
[330517191,1719555038773,-500.0,0.00038356,30]
[330517192,1719555038783,-500.0,0.00038356,30]
[330517193,1719555038793,-500.0,0.00038356,30]
[330517194,1719555038802,-500.0,0.00038356,30]
[330517195,1719555038812,-500.0,0.00038356,30]
[330517196,1719555038821,-655.28,0.00038356,30]
[330517197,1719555038831,-742.87,0.00038356,30]
[330517198,1719555038840,-500.0,0.00038356,30]
[330517199,1719555038850,-500.0,0.00038356,30]
[330517200,1719555038859,-500.0,0.00038356,30]
[330517201,1719555038869,-500.0,0.00038356,30]
[330517202,1719555038878,-500.0,0.00038356,30]
[330517203,1719555038888,-500.0,0.00038356,30]
[330517204,1719555038898,-500.0,0.00038356,30]
[330517205,1719555038907,-579.18,0.00038356,30]
[330517206,1719555038920,-500.0,0.00038356,30]
[330517207,1719555038930,-500.0,0.00038356,30]
[330517208,1719555038940,-500.0,0.00038356,30]
[330517209,1719555038954,-500.0,0.00038356,30]
[330517210,1719555038965,-500.0,0.00038356,30]
[330517211,1719555038976,-500.0,0.00038356,30]
[330517212,1719555038986,-500.0,0.00038356,30]
[330517213,1719555038996,-502.05056259,0.00038356,30]
[330517214,1719555039006,-766.12,0.00038356,30]
[330517215,1719555039017,-500.0,0.00038356,30]
[330517216,1719555039027,-500.0,0.00038356,30]
[330517217,1719555039037,-540.31071679,0.00038356,30]
[330517218,1719555039048,-500.0,0.00038356,30]
[330517219,1719555039058,-500.0,0.00038356,30]
[330517220,1719555039068,-299.15082161,0.00038356,30]
[330517221,1719555039078,-706.93,0.00038356,30]
[330517222,1719555039088,-500.0,0.00038356,30]
[330517223,1719555039099,-500.0,0.00038356,30]
[330517224,1719555039108,-511.49,0.00038356,30]
[330517225,1719555039118,-500.0,0.00038356,30]
[330517226,1719555039130,-500.0,0.00038356,30]
[330517227,1719555039139,-500.0,0.00038356,30]
[330517228,1719555039150,-572.01230582,0.00038356,30]
[330517229,1719555039160,-500.0,0.00038356,30]
[330517230,1719555039171,-500.0,0.00038356,30]
[330517231,1719555039182,-920.11,0.00038356,30]
[330517232,1719555039192,-753.26,0.00038356,30]
[330517233,1719555039212,-500.0,0.00038356,30]
[330517234,1719555039222,-500.0,0.00038356,30]
[330517235,1719555039232,-505.63502225,0.00038356,30]
[330517236,1719555039242,-500.0,0.00038356,30]
[330517237,1719555039252,-500.0,0.00038356,30]
[330517238,1719555039262,-502.69755119,0.00038356,30]
[330517239,1719555039272,-1785.72,0.00038356,30]
[330517240,1719555039282,-500.0,0.00038356,30]
[330517241,1719555039292,-448.0895058,0.00038356,30]
[330517242,1719555039301,-624.86220564,0.00038356,30]
[330517243,1719555039311,-476.66064937,0.00038356,30]
[330517244,1719555039320,-500.0,0.00038356,30]
[330517245,1719555039329,-623.55,0.00038356,30]
[330517246,1719555039339,-500.0,0.00038356,30]
[330517247,1719555039349,-500.0,0.00038356,30]
[330517248,1719555039359,-500.0,0.00038356,30]
[330517249,1719555039369,-500.0,0.00038356,30]
[330517250,1719555039379,-500.0,0.00038356,30]
[330517251,1719555039390,-501.64977003,0.00038356,30]
[330517252,1719555039400,-500.0,0.00038356,30]
[330517253,1719555039410,-500.0,0.00038356,30]
[330517254,1719555039421,-500.0,0.00038356,30]
[330517255,1719555039430,-602.65,0.00038356,30]
[330517256,1719555039440,-508.57677683,0.00038356,7]
[330517257,1719555039451,-500.0,0.00038356,30]
[330517258,1719555039460,-622.95,0.00038356,30]
[330517259,1719555039470,-500.0,0.00038356,30]
[330517260,1719555039479,-564.4305672,0.00038356,30]
[330517261,1719555039489,-848.32,0.00038356,30]
[330517262,1719555039498,-500.0,0.00038356,30]
[330517263,1719555039507,-500.0,0.00038356,30]
[330517264,1719555039648,-500.0,0.00038356,30]
[330517265,1719555039658,-500.81,0.00038356,30]
[330517266,1719555039668,-500.0,0.00038356,30]
[330517267,1719555039678,-298.04188045,0.00038356,30]
[330517268,1719555039688,-780.63,0.00038356,30]
[330517269,1719555039698,-500.0,0.00038356,30]
[330517270,1719555039707,-500.0,0.00038356,30]
[330517271,1719555039717,-318.01253964,0.00038356,30]
[330517272,1719555039726,-292.79730237,0.00038356,30]
[330517273,1719555039737,-552.3,0.00038356,30]
[330517277,1719555039747,-500.0,0.00038356,30]
[330517278,1719555039758,-736.96,0.00038356,30]